bitfinex/quotes_ETHUSD_20240621
["timestamp","ask_amount","ask_price","bid_price","bid_amount"]
[1718961827520,1.69634172,3485.1,3484.1,0.97985152]
[1718961827691,0.55,3485.2,3484.1,0.97985152]
[1718961827887,1.69620015,3485.1,3484.1,0.97985152]
[1718961828107,1.69620015,3485.0,3484.1,0.97985152]
[1718961828416,1.69620015,3484.9,3484.1,0.97985152]
[1718961828713,1.69620015,3484.8,3484.1,0.97985152]
[1718961829015,0.55,3485.2,3484.1,0.97985152]
[1718961829016,1.69620015,3484.7,3484.1,0.97985152]
[1718961829316,1.69620015,3484.6,3484.1,0.97985152]
[1718961829479,1.69620015,3484.5,3483.8,7.2711]
[1718961829676,0.55,3485.2,3483.8,7.2711]
[1718961829880,1.69614928,3485.1,3483.8,7.2711]
[1718961830181,1.69614928,3485.0,3483.8,7.2711]
[1718961830406,1.69614928,3484.9,3483.9,1.41659]
[1718961830714,1.69614928,3484.8,3483.9,1.41659]
[1718961831009,1.69623082,3484.7,3483.9,1.41659]
[1718961831229,1.69623082,3484.6,3484.0,0.868769]
[1718961831377,1.69628291,3484.5,3484.0,0.868769]
[1718961831581,1.69628291,3484.4,3484.0,0.868769]
[1718961831943,1.69628291,3484.3,3484.1,0.9556459]
[1718961832076,0.55,3485.2,3484.1,0.9556459]
[1718961832273,1.6962892,3485.1,3484.1,0.9556459]
[1718961832475,1.6962892,3485.0,3484.2,0.23722359]
[1718961832714,1.6962892,3484.9,3484.2,0.23722359]
[1718961832917,1.6962892,3484.8,3484.2,0.23722359]
[1718961833090,1.6962892,3484.7,3484.2,0.23722359]
[1718961833302,1.6962892,3484.6,3484.2,0.23722359]
[1718961833499,1.6962892,3484.5,3484.2,0.23722359]
[1718961833703,1.6962892,3484.4,3484.2,0.23722359]
[1718961833922,1.6962892,3484.3,3484.2,0.23722359]
[1718961834101,0.55,3485.2,3484.2,0.23722359]
[1718961834309,1.69628317,3485.1,3484.2,0.23722359]
[1718961834514,1.69628317,3485.0,3484.2,0.23722359]
[1718961834727,1.69628317,3484.9,3484.2,0.23722359]
[1718961834891,1.69628317,3484.8,3484.2,0.23722359]
[1718961835093,1.69628317,3484.7,3484.2,0.23722359]
[1718961835393,1.69628317,3484.6,3484.2,0.23722359]
[1718961835735,1.69628317,3484.5,3484.2,0.23722359]
[1718961835889,1.69628317,3484.4,3484.2,0.23722359]
[1718961836192,1.69628317,3484.3,3484.2,0.23722359]
[1718961836822,1.69628317,3485.2,3484.2,0.23722359]
[1718961837131,1.69628317,3485.1,3484.2,0.23722359]
[1718961837335,1.69648012,3485.0,3484.2,0.23722359]
[1718961837535,1.69648012,3484.9,3484.2,0.23722359]
[1718961837839,1.69648012,3484.8,3484.2,0.23722359]
[1718961837996,0.19293107,3485.3,3484.2,0.23722359]
[1718961837997,1.69648012,3484.7,3484.2,0.23722359]
[1718961838193,1.69648012,3484.6,3484.2,0.23722359]
[1718961838421,1.69648012,3484.5,3483.9,1.41659]
[1718961838634,1.69648012,3484.4,3483.9,1.41659]
[1718961838848,1.69648012,3484.3,3483.9,1.41659]
[1718961838993,1.69648012,3484.2,3484.0,0.92616639]
[1718961839193,1.69648012,3484.1,3484.0,0.868769]
[1718961839389,1.69648012,3484.1,3484.0,7.775169]
[1718961839927,1.69648012,3485.2,3484.0,7.775169]
[1718961840091,1.88542124,3485.1,3484.0,7.775169]
[1718961840290,0.55,3485.2,3484.0,7.775169]
[1718961840619,1.6964037,3485.1,3484.0,7.775169]
[1718961840814,1.69641796,3485.0,3484.0,7.775169]
[1718961841014,0.55,3485.2,3484.0,7.775169]
[1718961841217,0.55,3485.2,3484.1,0.9191759]
[1718961841747,0.19293107,3485.3,3484.1,0.9191759]
[1718961841960,0.19293107,3485.3,3484.2,0.05739004]
[1718961842245,0.19293107,3485.3,3484.1,0.9191759]
[1718961843541,0.19293107,3485.3,3484.2,0.0573871]
[1718961843751,0.19293107,3485.3,3484.3,0.84568175]
[1718961845037,0.19293107,3485.3,3484.3,0.7882963]
[1718961845429,0.19293107,3485.3,3484.4,7.129]
[1718961848543,0.19293107,3485.3,3484.7,7.1459]
[1718961848851,0.19293107,3485.3,3484.9,7.1673]
[1718961849009,0.19293107,3485.3,3485.0,0.77984324]
[1718961849604,0.19293107,3485.3,3485.0,0.72246759]
[1718961852263,0.1179728,3486.9,3485.1,10.1926]
[1718961852415,0.1179728,3486.9,3485.7,7.1646]
[1718961853212,0.1179728,3486.9,3485.8,0.01622028]
[1718961853409,0.1179728,3486.9,3485.7,7.1646]
[1718961853410,0.1179728,3486.9,3486.0,3.028]
[1718961853651,0.1179728,3486.9,3486.3,7.1646]
[1718961853947,0.1179728,3486.9,3486.4,0.91906]
[1718961854459,0.1179728,3486.9,3486.6,2.026]
[1718961855338,0.11661138,3486.9,3486.6,2.026]
[1718961856355,0.11661138,3486.9,3486.7,7.0169]
[1718961856516,0.11661138,3486.9,3486.8,0.70169]
[1718961858434,0.11661138,3486.9,3486.8,7.60609]
[1718961861840,0.11661138,3486.9,3486.8,10.63409]
[1718961862421,0.0123695,3486.9,3486.8,10.63409]
[1718961862939,0.0123695,3486.9,3486.8,7.60609]
[1718961863834,0.0123695,3486.9,3486.8,10.63409]
[1718961864034,0.0013122,3486.9,3486.8,10.63409]
[1718961869611,3.0,3488.8,3486.8,10.63409]
[1718961869786,3.0,3488.8,3487.2,5.054]
[1718961870104,7.2334,3488.9,3487.2,5.054]
[1718961870411,7.2334,3488.9,3487.3,10.0747]
[1718961870909,7.2334,3488.9,3487.3,12.1007]
[1718961872213,7.2334,3488.9,3487.3,9.0727]
[1718961872371,1.27334,3488.8,3487.3,9.0727]
[1718961872572,1.27334,3488.8,3487.3,7.0467]
[1718961874278,1.27334,3488.8,3487.2,6.8948]
[1718961877704,7.3044,3488.7,3487.2,6.8948]
[1718961877885,0.55,3488.6,3487.2,6.8948]
[1718961878091,0.912774,3488.5,3487.2,8.3136809]
[1718961878906,0.912774,3488.5,3487.2,6.8948]
[1718961878907,0.55,3488.4,3487.2,6.8948]
[1718961879192,7.4126,3488.9,3487.7,2.026]
[1718961879393,8.549067,3490.5,3487.8,6.7956]
[1718961879394,7.4126,3489.4,3487.8,6.7956]
[1718961880936,3.0,3489.3,3487.6,6.8948]
[1718961881089,3.55,3489.3,3487.6,6.8948]
[1718961881290,7.0468,3489.2,3487.6,6.8948]
[1718961881601,1.3396782,3489.1,3487.6,8.12790343]
[1718961882999,7.0536,3488.9,3487.6,6.8948]
[1718961883295,2.026,3488.6,3487.6,6.8948]
[1718961883543,7.6036,3488.5,3487.6,6.8948]
[1718961885699,3.0,3488.7,3487.6,6.8948]
[1718961885923,1.00536,3488.6,3487.6,6.8948]
[1718961886911,0.55,3488.5,3487.6,6.8948]
[1718961889650,7.1331,3488.4,3487.6,6.8948]
[1718961889857,0.55,3488.3,3487.6,6.8948]
[1718961891156,7.3332,3488.2,3487.6,6.8948]
[1718961891367,7.3332,3488.2,3487.2,6.8948]
[1718961891368,8.67152,3488.1,3487.2,6.8948]
[1718961891953,3.0,3488.0,3487.2,6.8948]
[1718961892116,0.55,3487.9,3487.2,6.8948]
[1718961893048,0.55,3488.0,3487.2,6.8948]
[1718961893668,8.12152,3488.1,3487.2,6.8948]
[1718961894165,7.3332,3488.1,3487.2,7.58428]
[1718961894307,7.4761,3488.5,3487.2,7.58428]
[1718961894510,0.55,3488.4,3487.2,7.58428]
[1718961897158,0.55,3488.4,3487.2,6.8948]
[1718961901925,3.55,3488.4,3487.2,6.8948]
[1718961902323,3.85006855,3488.4,3487.2,6.8948]
[1718961903222,3.55,3488.4,3487.2,6.8948]
[1718961903635,6.7619,3488.3,3487.2,6.8948]
[1718961903829,2.026,3488.1,3487.2,6.8948]
[1718961904126,0.55,3488.0,3487.2,6.8948]
[1718961904774,0.55,3488.0,3486.7,6.8948]
[1718961904927,3.55,3488.0,3486.7,6.8948]
[1718961905125,7.114,3487.9,3486.7,6.8948]
[1718961905425,3.95039171,3487.8,3486.7,6.8948]
[1718961906069,0.95039171,3487.8,3486.7,6.8948]
[1718961906252,0.55,3487.8,3486.7,6.8948]
[1718961907832,0.55,3487.8,3486.8,7.4515]
[1718961909525,0.30007186,3488.4,3486.8,7.4515]
[1718961909748,7.4191,3488.7,3486.9,2.026]
[1718961909961,7.4191,3488.7,3487.0,7.4641]
[1718961910141,7.4191,3488.7,3487.1,1.25181]
[1718961910341,7.4191,3488.7,3487.2,10.4921]
[1718961910542,1.94880675,3490.2,3487.4,7.4641]
[1718961910543,7.4191,3489.6,3487.4,7.4641]
[1718961910742,3.0,3489.5,3487.4,7.4641]
[1718961910966,1.54451,3489.4,3487.6,7.4641]
[1718961912975,0.55,3489.3,3487.6,7.4641]
[1718961913179,7.1999,3489.2,3487.6,7.4641]
[1718961913380,2.026,3488.8,3487.6,7.4641]
[1718961913594,0.55,3488.7,3487.6,7.4641]
[1718961913795,2.026,3488.8,3487.7,0.70170776]
[1718961914009,3.0,3489.1,3487.7,0.70170776]
[1718961914145,0.55,3489.0,3487.7,0.70170776]
[1718961914691,0.55,3489.0,3487.3,6.8948]
[1718961914692,2.576,3489.0,3487.3,6.8948]
[1718961914843,2.576,3489.0,3487.3,14.0729]
[1718961915280,2.026,3488.6,3487.3,14.0729]
[1718961915578,0.55,3488.5,3487.3,6.8948]
[1718961915784,0.2576,3488.4,3487.3,6.8948]
[1718961915978,0.55,3488.3,3487.3,6.8948]
[1718961916589,6.898,3488.2,3487.3,6.8948]
[1718961916747,0.55,3488.1,3487.3,6.8948]
[1718961916961,0.55,3488.1,3487.0,6.8948]
[1718961916962,6.55,3488.1,3487.0,6.8948]
[1718961917247,0.9474,3488.0,3487.0,6.8948]
[1718961917459,2.026,3487.8,3487.0,6.8948]
[1718961917669,0.55,3487.7,3487.0,6.8948]
[1718961918072,3.55,3487.7,3487.0,6.8948]
[1718961918387,7.9572889,3487.6,3486.6,6.8948]
[1718961918597,0.55,3487.5,3486.6,6.8948]
[1718961918759,3.55,3487.5,3486.6,6.8948]
[1718961919159,2.026,3487.4,3486.6,6.8948]
[1718961919365,0.55,3487.3,3486.6,6.8948]
[1718961919631,7.0836,3486.9,3486.6,6.8948]
[1718961919883,7.0836,3486.9,3485.7,6.8948]
[1718961920090,0.55,3486.8,3485.7,6.8948]
[1718961925870,0.55,3487.0,3485.7,6.8948]
[1718961928789,7.0819,3486.9,3485.7,6.8948]
[1718961929088,0.8424,3486.8,3485.7,6.8948]
[1718961929292,3.8424,3486.8,3485.7,6.8948]
[1718961930557,5.8684,3486.8,3485.7,6.8948]
[1718961931188,3.0,3486.7,3485.7,6.8948]
[1718961931393,0.55,3486.6,3485.7,6.8948]
[1718961931556,3.95290911,3487.1,3485.8,0.68948]
[1718961931756,3.0,3487.0,3485.8,0.68948]
[1718961932876,0.55,3486.9,3485.8,0.68948]
[1718961933569,0.55,3486.9,3485.7,6.8948]
[1718961935491,7.4988,3486.8,3485.7,6.8948]
[1718961935655,0.55,3486.7,3485.7,6.8948]
[1718961937094,0.85021002,3486.7,3485.7,6.8948]
[1718961940013,0.30021002,3486.7,3485.7,6.8948]
[1718961940219,0.30021002,3486.7,3485.8,0.68948]
[1718961940417,3.0,3487.0,3485.9,6.9888]
[1718961941902,0.55,3486.9,3485.9,6.9888]
[1718961943422,0.55,3486.9,3485.7,6.8948]
[1718961943603,0.6810437,3486.8,3485.7,6.8948]
[1718961943803,0.55,3486.7,3485.7,6.8948]
[1718961946566,0.55,3486.9,3485.7,6.8948]
[1718961947570,2.026,3486.6,3485.7,6.8948]
[1718961947732,0.92758016,3486.5,3485.7,6.8948]
[1718961948087,0.55,3486.4,3485.7,6.8948]
[1718961950050,7.2977,3486.3,3485.7,6.8948]
[1718961950353,0.55,3486.2,3485.7,6.8948]
[1718961950557,0.55,3486.2,3485.2,19.1748]
[1718961950773,1.58660874,3486.2,3485.2,19.1748]
[1718961951271,3.61260874,3486.2,3485.2,19.1748]
[1718961951653,3.61260874,3486.2,3485.2,6.8948]
[1718961953880,1.58660874,3486.2,3485.2,6.8948]
[1718961954178,0.55,3486.2,3485.2,6.8948]
[1718961958450,2.026,3486.4,3485.2,6.8948]
[1718961958451,3.55,3486.3,3485.2,6.8948]
[1718961958792,3.55,3486.3,3485.3,6.8983]
[1718961958959,0.55,3486.3,3485.3,6.8983]
[1718961959146,0.55,3486.5,3485.3,6.8983]
[1718961959340,2.19873312,3486.5,3485.3,8.27761]
[1718961960478,8.3028691,3486.7,3485.3,8.27761]
[1718961960682,0.30020163,3486.8,3485.6,7.3995]
[1718961960887,7.0011,3488.3,3486.3,7.3995]
[1718961961101,7.0011,3488.3,3486.4,8.13945]
[1718961961102,1.69694364,3488.2,3486.4,8.13945]
[1718961961275,1.69694364,3488.2,3486.7,7.3995]
[1718961961584,1.69645916,3488.1,3486.7,10.4275]
[1718961961793,1.69645916,3488.0,3486.8,6.028]
[1718961962007,1.69645916,3487.9,3487.1,10.4275]
[1718961962291,2.026,3489.5,3487.3,3.028]
[1718961962498,1.69624037,3489.4,3487.4,3.0]
[1718961962650,0.37222404,3489.3,3487.5,1.59228]
[1718961962848,1.69624037,3489.2,3487.6,0.02272219]
[1718961964009,1.69624037,3489.2,3487.7,7.0748]
[1718961964317,1.69624037,3489.2,3487.8,0.05732906]
[1718961964450,1.69624037,3489.2,3487.9,1.40269291]
[1718961964650,1.69624037,3489.2,3488.0,0.05732761]
[1718961965167,1.69624037,3489.1,3488.0,0.05732761]
[1718961965370,0.9531691,3490.3,3488.1,7.1375]
[1718961965371,3.25651314,3490.2,3488.1,7.1375]
[1718961965687,0.1179728,3490.4,3489.3,7.1375]
[1718961965869,0.1179728,3490.4,3489.4,0.05729104]
[1718961966199,0.1179728,3490.4,3489.3,7.1375]
[1718961966349,0.1179728,3490.4,3489.9,2.026]
[1718961966787,0.1179728,3490.4,3490.3,2.026]
[1718961966988,0.01252908,3490.4,3490.3,2.026]
[1718961967286,0.0013306,3490.4,3490.3,2.026]
[1718961967666,0.0013306,3490.4,3490.0,7.1375]
[1718961967855,0.0013306,3490.4,3490.1,0.71375]
[1718961968458,0.0013306,3490.4,3489.4,5.73975]
[1718961968665,0.0013306,3490.4,3489.5,3.028]
[1718961968872,0.0013306,3490.4,3489.4,5.73975]
[1718961968873,0.0013306,3490.4,3489.8,2.026]
[1718961971061,0.0013306,3490.4,3489.9,7.1375]
[1718961971895,0.021286,3491.7,3490.2,2.026]
[1718961972066,0.021286,3491.7,3490.3,0.2026]
[1718961972691,0.021286,3491.7,3491.1,2.026]
[1718961973371,0.021286,3491.7,3490.7,8.9208]
[1718961974072,0.021286,3491.7,3491.2,2.026]
[1718961974409,0.29970101,3492.9,3491.2,2.026]
[1718961974591,3.0,3493.2,3491.3,0.5054]
[1718961974775,0.29968547,3493.2,3491.6,3.028]
[1718961974974,0.29968547,3493.2,3491.4,7.1711]
[1718961975292,3.0,3493.3,3491.4,7.1711]
[1718961975594,7.3939,3492.7,3490.8,2.026]
[1718961975791,7.3939,3492.7,3490.8,5.29213338]
[1718961975792,7.3439,3492.7,3490.8,5.29213338]
[1718961976263,7.3439,3492.7,3491.2,2.026]
[1718961976264,0.55,3492.6,3491.2,2.026]
[1718961976814,0.55,3492.6,3490.8,3.26613338]
[1718961976959,1.08939,3492.5,3490.8,0.26613338]
[1718961977156,0.55,3492.4,3490.8,0.26613338]
[1718961977857,1.08939,3492.5,3491.4,2.026]
[1718961978083,3.0,3493.1,3491.4,2.026]
[1718961978294,0.55,3493.0,3491.4,2.026]
[1718961979005,0.55,3493.0,3490.9,3.028]
[1718961979006,0.29965044,3493.5,3492.5,2.026]
[1718961979158,0.1179728,3493.8,3492.5,2.026]
[1718961979159,0.1179728,3493.8,3492.6,0.2026]
[1718961979498,0.1179728,3493.8,3492.3,2.026]
[1718961979812,0.1179728,3493.8,3492.4,0.99659605]
[1718961980041,0.1179728,3493.8,3492.3,2.026]
[1718961980186,0.1179728,3493.8,3492.3,5.026]
[1718961980387,0.1179728,3493.8,3492.3,2.026]
[1718961980599,0.1179728,3493.8,3492.4,3.05291021]
[1718961980924,0.1179728,3493.8,3492.4,0.56140844]
[1718961981110,0.1179728,3493.8,3492.2,5.026]
[1718961981529,0.1179728,3493.8,3492.3,6.028]
[1718961981706,0.1179728,3493.8,3492.2,2.026]
[1718961982089,3.1179728,3493.8,3491.7,0.58808442]
[1718961982417,3.51439728,3493.7,3491.5,7.1138]
[1718961982740,2.026,3493.6,3491.5,7.1138]
[1718961982947,3.0,3493.3,3491.2,3.028]
[1718961983157,3.0,3493.3,3491.2,2.026]
[1718961983449,1.61769,3493.2,3491.3,0.2026]
[1718961983603,3.0,3492.9,3490.9,6.7806]
[1718961983799,0.55,3492.8,3490.9,6.7806]
[1718961984209,0.55,3492.8,3490.8,0.26613338]
[1718961984210,5.0162845,3492.7,3490.8,0.26613338]
[1718961984630,0.55,3492.6,3490.8,0.26613338]
[1718961984835,0.55,3492.6,3490.3,6.2306]
[1718961985205,3.0,3492.5,3490.3,0.2026]
[1718961985640,0.55,3492.4,3490.3,0.2026]
[1718961986959,5.0162845,3492.7,3490.3,0.2026]
[1718961987108,3.38210162,3492.6,3490.4,1.30355]
[1718961987452,5.0162845,3492.7,3490.4,1.30355]
[1718961987453,8.0162845,3492.7,3490.4,1.30355]
[1718961987661,3.0,3492.6,3490.4,1.30355]
[1718961988513,5.683,3492.6,3490.4,1.30355]
[1718961988710,0.51439728,3492.5,3490.4,1.30355]
[1718961988914,7.383,3492.4,3490.4,1.30355]
[1718961989136,3.55,3492.3,3490.4,1.30355]
[1718961989340,0.51439728,3492.5,3490.5,7.1878]
[1718961989565,2.683,3493.9,3491.0,5.711]
[1718961989730,3.1179728,3493.8,3491.0,5.711]
[1718961989948,0.29966101,3493.2,3491.0,5.711]
[1718961990150,0.1179728,3493.8,3491.1,0.05715064]
[1718961990469,0.29960007,3493.2,3492.5,9.8357]
[1718961990689,0.29960007,3493.2,3492.6,1.25187]
[1718961990832,3.0,3495.2,3492.6,1.25187]
[1718961991038,0.04989239,3495.3,3492.6,4.27987]
[1718961991368,3.0,3496.5,3494.1,6.8077]
[1718961991530,3.0,3496.5,3494.2,0.68077]
[1718961991531,0.04987035,3496.4,3494.2,0.68077]
[1718961991732,0.29943687,3495.7,3494.1,2.683]
[1718961991928,0.29943687,3495.7,3493.6,2.683]
[1718961992174,3.0,3496.0,3493.6,2.683]
[1718961992371,0.29944454,3495.7,3493.6,2.683]
[1718961992886,7.05924454,3495.7,3493.6,2.683]
[1718961994132,10.05924454,3495.7,3493.3,10.5207]
[1718961994461,10.05924454,3495.7,3493.4,1.32037]
[1718961994673,0.55,3495.6,3493.4,1.32037]
[1718961995004,0.55,3495.6,3493.1,2.683]
[1718961995612,3.0,3495.2,3492.7,3.0]
[1718961995904,3.55,3495.1,3492.6,20.64027]
[1718961996080,3.85,3495.1,3492.7,2.064027]
[1718961996806,3.85,3495.1,3492.6,9.4656]
[1718961996985,3.85,3495.1,3492.3,4.6739]
[1718961996986,3.85,3495.1,3492.3,1.6739]
[1718961997173,3.85,3495.1,3492.3,4.3569]
[1718961997610,3.85,3495.1,3492.3,7.3849]
[1718961997819,0.9533,3495.0,3492.4,0.73849]
[1718961998111,0.55,3494.9,3492.4,0.73849]
[1718961998317,3.3,3495.1,3493.0,5.711]
[1718961998318,0.3,3495.1,3493.0,5.711]
[1718961998486,7.05924454,3495.7,3493.2,3.028]
[1718961998804,7.05924454,3495.7,3493.1,7.9897]
[1718961998805,3.0,3494.5,3493.1,0.58421161]
[1718961999005,0.64,3495.8,3491.7,7.4186]
[1718961999006,6.9773,3493.9,3491.7,7.4186]
[1718961999218,0.75,3495.4,3491.7,7.4186]
[1718961999219,0.75024769,3494.8,3491.8,4.725]
[1718961999374,6.8377,3495.2,3492.3,0.58421161]
[1718961999570,9.8377,3495.2,3492.4,0.58421161]
[1718961999768,3.0,3494.8,3492.5,0.1460529]
[1718961999968,0.55,3494.7,3492.5,0.1460529]
[1718962000181,2.683,3494.5,3491.8,3.0]
[1718962000484,2.683,3494.5,3491.7,7.4186]
[1718962000485,2.683,3494.0,3491.7,7.4186]
[1718962000669,0.55,3494.4,3492.0,2.683]
[1718962000889,0.55,3494.4,3492.1,3.2963]
[1718962001114,3.0,3494.9,3492.1,3.2963]
[1718962001405,3.36677,3495.1,3492.6,3.028]
[1718962001621,0.55,3495.0,3492.6,3.028]
[1718962002082,0.55,3495.0,3492.8,3.028]
[1718962002291,0.59831728,3494.9,3492.9,4.04508]
[1718962002702,0.55,3495.0,3492.9,4.04508]
[1718962002877,0.55,3495.1,3492.9,4.04508]
[1718962003216,3.0,3495.1,3492.9,4.04508]
[1718962003376,3.0,3495.1,3493.0,4.78942077]
[1718962003725,3.0,3495.1,3493.0,1.76142077]
[1718962003923,0.55,3495.0,3493.0,1.17720916]
[1718962004083,0.55,3495.0,3492.7,7.1428]
[1718962004084,3.55,3495.0,3492.7,7.1428]
[1718962004270,3.0,3494.9,3492.7,7.1428]
[1718962004473,0.55,3494.8,3492.7,7.1428]
[1718962004680,0.55,3494.8,3492.7,7.73229291]
[1718962005015,0.355,3494.7,3492.8,0.86165323]
[1718962005305,0.355,3494.7,3492.1,0.2683]
[1718962005306,3.0,3494.5,3492.4,0.58951602]
[1718962005607,3.0,3494.5,3492.6,0.58951602]
[1718962005608,3.55,3494.4,3492.6,0.58951602]
[1718962006196,3.55,3494.4,3492.5,0.58951602]
[1718962006396,3.55,3494.4,3492.6,0.73689503]
[1718962006904,2.95200314,3494.4,3492.6,0.73689503]
[1718962007297,1.88889655,3494.4,3492.6,0.73689503]
[1718962007620,8.60389999,3495.2,3493.2,0.58951602]
[1718962007621,7.1039,3495.2,3493.2,0.58951602]
[1718962007826,7.1039,3495.2,3493.3,0.14737901]
[1718962007992,7.1039,3495.2,3493.5,0.58951602]
[1718962008168,7.1039,3495.2,3493.4,0.58951602]
[1718962008369,7.1039,3495.2,3493.5,0.58951602]
[1718962008882,7.1039,3495.2,3493.4,0.88427403]
[1718962008883,7.1039,3495.2,3493.6,1.49463634]
[1718962009089,7.1039,3495.2,3493.4,0.58951602]
[1718962009270,7.1039,3495.2,3493.5,2.08421622]
[1718962009470,7.1039,3495.2,3493.6,1.4947002]
[1718962009471,3.29952724,3495.1,3493.6,1.4947002]
[1718962009707,3.29952724,3495.1,3493.5,0.58951602]
[1718962009913,3.29952724,3495.1,3493.4,0.58951602]
[1718962010119,0.55,3495.0,3493.5,1.64213314]
[1718962010322,0.55,3495.0,3493.6,1.49475413]
[1718962010506,0.55,3495.0,3493.7,1.49475413]
[1718962010709,0.55,3495.0,3493.6,0.58951602]
[1718962011073,3.29952724,3495.1,3493.7,1.49474227]
[1718962011384,3.29952724,3495.1,3494.0,0.59243932]
[1718962011571,3.29952724,3495.1,3494.1,1.49474227]
[1718962011773,3.29952724,3495.1,3493.9,0.59243932]
[1718962012013,3.29952724,3495.1,3494.0,1.4946285]
[1718962012304,3.29952724,3495.1,3494.1,1.49467737]
[1718962012521,3.29952724,3495.1,3493.8,0.88865899]
[1718962012522,3.0,3494.8,3493.8,0.59243932]
[1718962012672,3.0,3494.8,3493.9,1.49475409]
[1718962012871,3.0,3494.8,3493.5,0.59243932]
[1718962012872,3.905,3494.7,3493.5,0.59243932]
[1718962013076,3.905,3494.7,3493.6,1.49489496]
[1718962013291,3.905,3494.7,3493.4,0.59243932]
[1718962013521,3.905,3494.7,3493.5,1.494938]
[1718962013675,3.905,3494.7,3493.4,0.59243932]
[1718962013676,0.32877,3494.6,3493.4,0.59243932]
[1718962013899,0.55,3494.5,3493.5,1.49496081]
[1718962014102,0.55,3494.5,3493.4,0.59243932]
[1718962014299,0.55,3494.5,3493.5,1.49496381]
[1718962014501,0.55,3494.5,3493.6,1.49496864]
[1718962014833,0.355,3494.4,3493.4,0.59382268]
[1718962014999,7.8782,3494.3,3493.5,1.49497135]
[1718962015207,0.32877,3494.2,3493.4,0.59382268]
[1718962015435,0.55,3494.1,3493.1,0.59382268]
[1718962015641,0.355,3494.0,3493.2,1.49501836]
[1718962015803,0.355,3494.0,3493.3,1.49501836]
[1718962016007,0.355,3494.0,3493.1,0.59382268]
[1718962016325,0.355,3494.0,3493.2,2.088841]
[1718962016638,0.355,3494.0,3492.9,0.59382268]
[1718962016835,0.355,3494.0,3493.0,1.49501827]
[1718962017055,0.55,3493.9,3492.9,0.87578079]
[1718962017338,0.355,3494.0,3493.0,2.08916656]
[1718962017554,0.355,3494.0,3492.9,0.28195811]
[1718962017702,0.355,3494.0,3492.7,0.59415664]
[1718962017902,0.355,3494.0,3492.8,1.49499854]
[1718962018102,0.355,3494.0,3492.6,0.74153565]
[1718962018298,0.355,3494.0,3492.7,2.08917336]
[1718962018503,0.355,3494.0,3492.7,1.03112873]
[1718962020505,0.55,3493.9,3492.6,0.14737901]
[1718962020708,0.55,3493.9,3492.1,0.2683]
[1718962022418,0.29957865,3494.1,3492.1,0.2683]
[1718962022419,0.29957865,3494.1,3492.3,3.028]
[1718962022667,3.0,3495.6,3492.3,3.028]
[1718962022866,3.0,3495.6,3492.5,3.028]
[1718962022867,0.32876,3495.5,3492.5,3.028]
[1718962023025,0.32876,3495.5,3492.4,4.09728755]
[1718962023026,7.0064,3494.6,3492.4,4.09728755]
[1718962023761,7.30594129,3494.6,3492.4,4.09728755]
[1718962024120,0.55,3494.5,3492.4,4.09728755]
[1718962024441,0.90501,3494.5,3492.5,1.77940876]
[1718962026350,0.35501,3494.5,3492.6,3.028]
[1718962027730,7.30594129,3494.6,3492.6,3.028]
[1718962027921,7.30594129,3494.6,3492.5,1.77940876]
[1718962027922,7.30594129,3494.6,3492.8,3.028]
[1718962028122,7.1615,3495.1,3492.8,3.028]
[1718962028345,7.1615,3495.1,3493.0,3.028]
[1718962028557,7.1615,3495.1,3493.1,4.01864]
[1718962029428,6.8963,3495.9,3493.3,3.028]
[1718962029848,0.29945055,3495.8,3493.3,3.028]
[1718962030365,3.29945055,3495.8,3493.4,0.04238241]
[1718962030561,3.29945055,3495.8,3493.6,3.028]
[1718962030723,3.29945055,3495.8,3493.7,0.04237877]
[1718962030927,3.29945055,3495.8,3493.9,10.332]
[1718962031131,3.0,3495.8,3493.9,10.332]
[1718962031374,6.8963,3495.9,3493.9,10.332]
[1718962031671,6.8963,3495.9,3494.0,1.0332]
[1718962031971,7.19572127,3495.9,3494.0,1.0332]
[1718962033163,0.55,3495.8,3494.0,1.0332]
[1718962033530,3.55,3495.8,3494.0,1.0332]
[1718962033970,3.55,3495.8,3493.7,6.8948]
[1718962033971,6.55,3495.8,3493.7,6.8948]
[1718962038772,7.258,3495.3,3493.7,6.8948]
[1718962038970,3.55,3495.2,3493.7,6.8948]
[1718962039831,2.681,3494.9,3492.8,6.8948]
[1718962040102,3.55,3494.8,3492.8,6.8948]
[1718962040376,6.9937,3494.7,3492.8,6.8948]
[1718962040524,3.55,3494.6,3492.8,6.8948]
[1718962040728,2.681,3494.4,3492.8,6.8948]
[1718962040995,0.55,3494.3,3492.8,6.8948]
[1718962041284,0.3231,3494.2,3492.9,0.68948]
[1718962042281,0.299579,3494.1,3492.9,0.68948]
[1718962043133,0.299579,3494.1,3493.0,7.1576]
[1718962043667,3.0,3494.6,3493.0,7.1576]
[1718962043974,0.29953702,3494.4,3493.0,7.1576]
[1718962044182,0.29953702,3494.4,3493.1,1.474188]
[1718962045031,0.55,3494.3,3492.9,0.68948]
[1718962045225,2.98053702,3494.4,3492.8,6.8948]
[1718962046033,0.55,3494.3,3492.8,6.8948]
[1718962047679,6.891,3494.2,3492.8,6.8948]
[1718962047878,2.681,3493.9,3492.8,6.8948]
[1718962048190,0.2681,3493.8,3492.8,6.8948]
[1718962048350,3.8181,3493.8,3492.8,6.8948]
[1718962051690,0.04990741,3493.7,3492.8,6.8948]
[1718962051866,0.55,3493.6,3492.8,6.8948]
[1718962052574,0.55,3493.6,3492.2,6.8948]
[1718962052774,0.38680074,3493.5,3492.2,6.8948]